fUSD/lending_fUSD_20241003
["ID","MTS","AMOUNT","RATE_DAILY","PERIOD"]
[339799822,1727987603899,-1533.51322066,0.00039178,120]
[339799823,1727987603911,-1245.46402948,0.00039178,120]
[339799824,1727987603920,-2708.36705991,0.00039178,120]
[339799825,1727987603931,-1028.72991457,0.00039178,120]
[339799826,1727987603940,-919.96386305,0.00039178,120]
[339799827,1727987603950,-2393.07393926,0.00039178,120]
[339799828,1727987603963,-1220.01606031,0.00039178,120]
[339799829,1727987603974,-967.20618801,0.00039178,120]
[339799830,1727987603984,-1971.10888856,0.00039178,120]
[339799831,1727987603994,-11039.60616838,0.00039178,120]
[339799832,1727987604004,-1835.09906392,0.00039178,120]
[339799833,1727987604014,-648.11340825,0.00039178,120]
[339799834,1727987604023,-1066.72011229,0.00039178,120]
[339799835,1727987604032,-2065.79943987,0.00039178,120]
[339799836,1727987604042,-2041.45225054,0.00039178,120]
[339799837,1727987604052,-701.89163126,0.00039178,120]
[339799838,1727987604062,-512.56867449,0.00039178,120]
[339799839,1727987604072,-527.86536207,0.00039178,120]
[339799840,1727987604082,-527.07057037,0.00039178,120]
[339799841,1727987604091,-1302.54460988,0.00039178,120]
[339799842,1727987604101,-968.4679302,0.00039178,120]
[339799843,1727987604111,-1041.35896447,0.00039178,120]
[339799844,1727987604121,-1511.01626689,0.00039178,120]
[339799845,1727987604131,-2058.64473631,0.00039178,120]
[339799846,1727987604141,-1636.04854458,0.00039178,120]
[339799847,1727987604151,-2567.07224458,0.00039178,120]
[339799848,1727987604160,-500.5297296,0.00039178,120]
[339799849,1727987604170,-1123.23529409,0.00039178,120]
[339799850,1727987604180,-1766.58862685,0.00039178,120]
[339799851,1727987604189,-1421.18202811,0.00039178,120]
[339799852,1727987604199,-2301.83288446,0.00039178,120]
[339799853,1727987604209,-1093.94555081,0.00039178,120]
[339799854,1727987604218,-2041.20697899,0.00039178,120]
[339799855,1727987604228,-1056.93553102,0.00039178,120]
[339799856,1727987604238,-4824.31227381,0.00039178,120]
[339799857,1727987604248,-576.22694249,0.00039178,120]
[339799858,1727987604259,-2540.07857532,0.00039178,120]
[339799859,1727987604268,-1031.8397748,0.00039178,120]
[339799860,1727987604278,-1058.42872902,0.00039178,120]
[339799861,1727987604288,-2770.43717051,0.00039178,120]
[339799862,1727987604298,-2126.41557231,0.00039178,120]
[339799863,1727987604307,-3109.65019719,0.00039178,120]
[339799864,1727987604317,-1989.54096299,0.00039178,120]
[339799865,1727987604327,-2838.83165372,0.00039178,120]
[339799866,1727987604336,-2454.90014344,0.00039178,120]
[339799867,1727987604346,-2489.99001699,0.00039178,120]
[339799868,1727987604357,-1548.79534085,0.00039178,120]
[339799869,1727987604368,-1539.9481929,0.00039178,120]
[339799870,1727987604378,-751.50377866,0.00039178,120]
[339799871,1727987604388,-1135.58668917,0.00039178,120]
[339799872,1727987604401,-26307.83236314,0.00039178,120]
[339799873,1727987604411,-920.24616741,0.00039178,120]
[339799874,1727987604420,-1359.54746215,0.00039178,120]
[339799875,1727987604430,-2373.49085803,0.00039178,120]
[339799876,1727987604441,-723.9060475,0.00039178,120]
[339799877,1727987604451,-683.12,0.00039178,120]
[339799878,1727987604462,-1328.43115615,0.00039178,120]
[339799879,1727987604472,-1718.99993661,0.00039178,120]
[339799880,1727987604483,-2515.82936188,0.00039178,120]
[339799881,1727987604493,-953.50751144,0.00039178,120]
[339799882,1727987604504,-876.35354715,0.00039178,120]
[339799883,1727987604516,-2264.23481914,0.00039178,120]
[339799884,1727987604526,-2588.02958942,0.00039178,120]
[339799885,1727987604535,-1281.48629922,0.00039178,120]
[339799886,1727987604545,-1057.16,0.00039178,120]
[339799887,1727987604555,-1543.81044913,0.00039178,120]
[339799888,1727987604564,-567.28874893,0.00039178,120]
[339799889,1727987604574,-622.61390373,0.00039178,120]
[339799890,1727987604583,-1173.90347972,0.00039178,120]
[339799891,1727987604595,-831.22938483,0.00039178,120]
[339799892,1727987604605,-574.62649368,0.00039178,120]
[339799893,1727987604615,-605.82,0.00039178,120]
[339799894,1727987604625,-656.32094691,0.00039178,24]
[339799895,1727987604635,-999.76947623,0.00039178,120]
[339799896,1727987604644,-1059.68069604,0.00039178,120]
[339799897,1727987604655,-1114.48646108,0.00039178,120]
[339799898,1727987604665,-2558.16117204,0.00039178,120]
[339799899,1727987604674,-2619.30215156,0.00039178,120]
[339799900,1727987604685,-985.965164,0.00039178,120]
[339799901,1727987604694,-2197.02964897,0.00039178,120]
[339799902,1727987604704,-1368.63004279,0.00039178,120]
[339799903,1727987604714,-534.51591818,0.00039178,120]
[339799904,1727987604724,-623.58996613,0.00039178,120]
[339799905,1727987604734,-1761.01,0.00039178,120]
[339799906,1727987604744,-4833.9876457,0.00039178,120]
[339799907,1727987604754,-1036.15313529,0.00039178,120]
[339799908,1727987604764,-614.09471253,0.00039178,120]
[339799909,1727987604775,-1295.59703555,0.00039178,120]
[339799910,1727987604784,-1100.72340492,0.00039178,120]
[339799911,1727987604794,-1437.37722423,0.00039178,120]
[339799912,1727987604804,-581.78697747,0.00039178,120]
[339799913,1727987604813,-373.57548944,0.00039178,120]
[339799914,1727987604823,-1584.09613587,0.00039178,120]
[339799915,1727987604832,-1739.59370003,0.00039178,120]
[339799916,1727987604842,-780.77043499,0.00039178,120]
[339799917,1727987604853,-504.65077138,0.00039178,120]
[339799918,1727987604864,-10179.47460137,0.00039178,120]
[339799919,1727987604874,-567.9089552,0.00039178,120]
[339799920,1727987604889,-860.13716293,0.00039178,120]
[339799921,1727987604900,-1002.86128563,0.00039178,120]
[339799922,1727987604911,-669.46645737,0.00039178,120]
[339799923,1727987604920,-2304.13707427,0.00039178,120]
[339799924,1727987604931,-631.34755698,0.00039178,120]
[339799925,1727987604941,-8270.18056406,0.00039178,21]
[339799926,1727987604950,-1138.58754335,0.00039178,120]
[339799927,1727987604962,-148874.48477352,0.000392,120]
[339799928,1727987604972,-315.73,0.000392,60]
[339799929,1727987604982,-795.22408,0.00039208,30]
[339799930,1727987604992,-2508.98,0.00039233,30]
[339799931,1727987605001,-151.100309,0.00039248,120]
[339799932,1727987605011,-1000000.0,0.0003925,120]
[339799933,1727987605023,-1000000.0,0.0003925,120]
[339799934,1727987605032,-2508.99,0.00039258,30]
[339799935,1727987605042,-92460.27133866,0.000393,120]
[339799936,1727987605051,-150.0,0.000393,120]
[339799937,1727987605061,-8801.40809746,0.000394,25]
[339799938,1727987605071,-795.22408,0.00039408,30]
[339799939,1727987605080,-151.100307,0.00039448,120]
[339799940,1727987605090,-999.0,0.00039452,120]
[339799941,1727987605100,-5000.0,0.00039474,75]
[339799942,1727987605109,-2513.6,0.00039476,30]
[339799943,1727987605120,-1000000.0,0.000395,120]
[339799944,1727987605131,-1000000.0,0.000395,120]
[339799945,1727987605142,-1000000.0,0.000395,120]
[339799946,1727987605154,-1258.8,0.00039538,30]
[339799947,1727987605164,-151.100218,0.00039548,120]
[339799948,1727987605174,-1000.3186333,0.000396,120]
[339799949,1727987605185,-1000000.0,0.000396,120]
[339799950,1727987605194,-795.22408,0.00039608,30]
[339799951,1727987605204,-1564.5,0.00039608,30]
[339799952,1727987605214,-799.0,0.00039638,5]
[339799953,1727987605224,-157.100317,0.00039648,120]
[339799954,1727987605235,-200.0,0.000397,22]
[339799955,1727987605245,-1564.93,0.00039737,2]
[339799956,1727987605550,-151.100218,0.00039748,120]
[339799957,1727987605564,-1000000.0,0.0003975,120]
[339799958,1727987605574,-250.0,0.0003977,2]
[339799959,1727987605583,-200.36494453,0.0003977,2]
[339799960,1727987605592,-411.0,0.00039786,90]
[339799961,1727987605601,-1000000.0,0.000398,120]
[339799962,1727987605610,-795.22408,0.00039808,30]
[339799963,1727987605619,-157.100317,0.00039848,120]
[339799964,1727987605628,-706.8658,0.00039888,7]
[339799965,1727987605638,-1132.80198314,0.0003989,4]
[339799966,1727987605647,-10000.0,0.00039897,2]
[339799967,1727987605656,-2987.0,0.00039898,60]
[339799968,1727987605667,-5971.51408474,0.000399,10]
[339799969,1727987605679,-5208.62295586,0.000399,15]
[339799970,1727987605690,-3823.5505233,0.000399,120]
[339799971,1727987605700,-468.28478061,0.000399,30]
[339799972,1727987605712,-2296.81298422,0.000399,120]
[339799973,1727987605722,-396.53859937,0.000399,120]
[339799974,1727987605731,-4725.0,0.000399,30]
[339799975,1727987605740,-16115.0,0.000399,30]
[339799976,1727987605751,-282.92675,0.000399,120]
[339799977,1727987605763,-140000.0,0.000399,30]
[339799978,1727987605776,-151.100218,0.00039948,120]
[339799979,1727987605785,-250.0,0.0003997,2]
[339799980,1727987605794,-200.0,0.0003997,2]
[339799981,1727987605803,-563421.2129748,0.0003998,60]
[339799982,1727987605812,-14828.04312297,0.0003999,120]
[339799983,1727987605821,-411.0,0.00039996,90]
[339799984,1727987605830,-200.0,0.00039999,30]
[339799985,1727987605839,-1000.0,0.00039999,120]
[339799986,1727987605849,-50000.0,0.0004,30]
[339799987,1727987605858,-50000.0,0.0004,40]
[339799988,1727987605868,-371.02793176,0.0004,2]
[339799989,1727987605880,-208.03765127,0.0004,2]
[339799990,1727987605892,-83590.0,0.0004,3]
[339799991,1727987605902,-7580.65111694,0.0004,4]
[339799992,1727987605913,-396.32513417,0.0004,7]
[339799993,1727987605922,-1000.0,0.0004,20]
[339799994,1727987605932,-2878.40150526,0.0004,2]
[339799995,1727987605943,-2257.34398984,0.0004,14]
[339799996,1727987605953,-307.20662557,0.0004,4]
[339799997,1727987605966,-917.85016712,0.0004,7]
[339799998,1727987605977,-200.0,0.0004,6]
[339799999,1727987605987,-100000.0,0.0004,2]
[339800000,1727987605996,-173.285,0.0004,2]
[339800001,1727987606006,-173.42,0.0004,2]
[339800002,1727987606018,-1000000.0,0.0004,120]
[339800003,1727987606027,-477.12749073,0.0004,30]
[339800004,1727987606036,-617.61037613,0.0004,120]
[339800005,1727987606045,-2323.3814037,0.0004,120]
[339800006,1727987606056,-981108.32850198,0.0004,120]
[339800007,1727987606066,-2950.87045542,0.0004,30]
[339800008,1727987606076,-400.011049,0.0004,30]
[339800009,1727987606086,-711.59130831,0.0004,120]
[339800010,1727987606095,-3541.71183458,0.0004,120]
[339800011,1727987606104,-1487.06583323,0.0004,30]
[339800012,1727987606114,-211.90820835,0.0004,30]
[339800013,1727987606124,-1752.54195015,0.0004,120]
[339800014,1727987606134,-6921.60861936,0.0004,30]
[339800015,1727987606143,-291.37043736,0.0004,30]
[339800016,1727987606154,-2993.25741672,0.0004,120]
[339800017,1727987606164,-1212.66483129,0.0004,120]
[339800018,1727987606174,-5375.15729893,0.0004,30]
[339800019,1727987606184,-604.93595286,0.0004,120]
[339800020,1727987606194,-1167.98080188,0.0004,120]
[339800021,1727987606203,-1050.76469687,0.0004,32]
[339800022,1727987606213,-271.5660647,0.0004,30]
[339800023,1727987606223,-475.37887825,0.0004,120]
[339800024,1727987606233,-9233.24774386,0.0004,120]
[339800025,1727987606242,-4071.13932999,0.0004,120]
[339800026,1727987606252,-1337.60970045,0.0004,120]
[339800027,1727987606261,-493.45388529,0.0004,120]
[339800028,1727987606272,-1000.0,0.0004,120]
[339800029,1727987606281,-23000.0,0.0004,120]
[339800030,1727987606290,-20000.0,0.0004,120]
[339800031,1727987606300,-2442.86904193,0.0004,120]
[339800032,1727987606309,-1114.36545678,0.0004,120]
[339800033,1727987606318,-158.67844756,0.0004,120]
[339800034,1727987606328,-13737.23113171,0.0004,120]
[339800035,1727987606337,-5000.0,0.0004,30]
[339800036,1727987606346,-166.18,0.0004,120]
[339800037,1727987606356,-5274.57571969,0.0004,120]
[339800038,1727987606366,-11537.0,0.0004,120]
[339800039,1727987606375,-1058.0,0.0004,120]
[339800040,1727987606384,-5831.348467,0.0004,120]
[339800041,1727987606394,-178.0,0.0004,120]
[339800042,1727987606403,-694343.26546436,0.0004,120]
[339800043,1727987606412,-4157.51442659,0.0004,120]
[339800044,1727987606421,-95576.0,0.0004,120]
[339800045,1727987606430,-15000.0,0.0004,30]
[339800046,1727987606440,-3502.0,0.0004,120]
[339800047,1727987606449,-1000000.0,0.0004,120]
[339800048,1727987606458,-12650.48107023,0.0004,30]
[339800049,1727987606467,-1000000.0,0.0004,120]
[339800050,1727987606476,-967.31151481,0.0004,120]
[339800051,1727987606486,-200.0,0.0004,30]
[339800052,1727987606495,-900.0,0.0004,120]
[339800053,1727987606504,-1000.0,0.0004,120]
[339800054,1727987606513,-1000.0,0.0004,120]
[339800055,1727987606523,-1000.0,0.0004,120]
[339800056,1727987606532,-1000.0,0.0004,120]
[339800057,1727987606541,-323.65092307,0.0004,120]
[339800058,1727987606551,-710078.97739581,0.0004,30]
[339800059,1727987606560,-3001.38535961,0.0004,120]
[339800060,1727987606570,-300.0,0.0004,120]
[339800061,1727987606579,-10930.0,0.0004,45]
[339800062,1727987606588,-500.0,0.0004,120]
[339800063,1727987606597,-578.48775449,0.0004,120]
[339800064,1727987606606,-380.0,0.0004,120]
[339800065,1727987606616,-391.7614631,0.0004,120]
[339800066,1727987606626,-9756.0,0.0004,120]
[339800067,1727987606635,-319.43129367,0.0004,120]
[339800068,1727987606644,-264.93,0.0004,120]
[339800069,1727987606654,-155.98862055,0.0004,30]
[339800070,1727987606663,-8451.47820989,0.0004,30]
[339800071,1727987606672,-14143.20458275,0.0004,30]
[339800072,1727987606681,-468.02978714,0.0004,120]
[339800073,1727987606690,-10076.67267284,0.0004,30]
[339800074,1727987606700,-800.0,0.0004,120]
[339800075,1727987606710,-1090.47557491,0.0004,30]
[339800076,1727987606719,-164.33774293,0.0004,120]
[339800077,1727987606729,-265.95926216,0.0004,30]
[339800078,1727987606739,-291.37,0.0004,30]
[339800079,1727987606748,-10000.0,0.0004,120]
[339800080,1727987606758,-34000.0,0.0004,60]
[339800081,1727987606769,-5169.46,0.0004,120]
[339800082,1727987606778,-22456.407946,0.0004,120]
[339800083,1727987606789,-604.64564334,0.0004,45]
[339800084,1727987606798,-280.26739322,0.0004,45]
[339800085,1727987606807,-408.96740486,0.0004,45]
[339800086,1727987606816,-900.0,0.0004,41]
[339800087,1727987606826,-343.5769394,0.0004,30]
[339800088,1727987606835,-300.0,0.0004,30]
[339800089,1727987606844,-500.0,0.0004,30]
[339800090,1727987606853,-500.0,0.0004,30]
[339800091,1727987606863,-500.0,0.0004,30]
[339800092,1727987606872,-500.0,0.0004,30]
[339800093,1727987606886,-500.0,0.0004,30]
[339800094,1727987606895,-500.0,0.0004,30]
[339800095,1727987606904,-500.0,0.0004,30]
[339800096,1727987606914,-500.0,0.0004,30]
[339800097,1727987606923,-2442.62082194,0.0004,120]
[339800098,1727987606933,-3131.00603854,0.0004,120]
[339800099,1727987606942,-5061.0,0.0004,120]
[339800100,1727987606952,-5071.85632982,0.0004,120]
[339800101,1727987606963,-150.0,0.0004,2]
[339800102,1727987606972,-150.0,0.0004,2]
[339800103,1727987606982,-459.651187,0.0004,30]
[339800104,1727987606992,-1280.0,0.0004,120]
[339800105,1727987607001,-2500.0,0.0004,120]
[339800106,1727987607010,-150.0,0.00040034,120]
[339800107,1727987607020,-157.100317,0.00040048,119]
[339800108,1727987607030,-570.0,0.000401,3]
[339800109,1727987607039,-10000.0,0.000401,120]
[339800110,1727987607049,-151.100218,0.00040148,120]
[339800111,1727987607059,-795.22408,0.00040208,30]
[339800112,1727987607069,-157.100317,0.00040248,119]
[339800113,1727987607079,-4294.0375607,0.00040261,60]
[339800114,1727987607088,-500.0,0.00040274,7]
[339800115,1727987607097,-151.100218,0.00040348,120]
[339800116,1727987607106,-795.22408,0.00040408,30]
[339800117,1727987607116,-157.100317,0.00040448,119]
[339800118,1727987607125,-1000000.0,0.000405,120]
[339800119,1727987607135,-3000.0,0.000405,2]
[339800120,1727987607145,-999.0,0.00040547,120]
[339800121,1727987607154,-151.100218,0.00040548,120]
[339800122,1727987607164,-795.22408,0.00040608,30]
[339800123,1727987607174,-157.100317,0.00040648,119]
[339800124,1727987607183,-706.1001,0.00040688,7]
[339800125,1727987607193,-151.100218,0.00040748,120]
[339800126,1727987607203,-795.22408,0.00040808,30]
[339800127,1727987607211,-900.0,0.00040822,7]
[339800128,1727987607220,-1300.0,0.00040822,7]
[339800129,1727987607230,-157.100317,0.00040848,119]
[339800130,1727987607239,-151.100218,0.00040948,120]
[339800131,1727987607249,-50000.0,0.00041,31]
[339800132,1727987607259,-50000.0,0.00041,41]
[339800133,1727987607269,-500.0,0.00041,10]
[339800134,1727987607279,-5000.0,0.00041,7]
[339800135,1727987607288,-1000000.0,0.00041,120]
[339800136,1727987607298,-1000.0,0.00041,120]
[339800137,1727987607307,-10000.0,0.00041,120]
[339800138,1727987607317,-9652.0,0.00041,120]
[339800139,1727987607326,-1122.0,0.00041,120]
[339800140,1727987607335,-501.13698187,0.00041,120]
[339800141,1727987607345,-500000.0,0.00041,120]
[339800142,1727987607354,-3260.23,0.00041,120]
[339800143,1727987607363,-7978.76318654,0.00041,120]
[339800144,1727987607373,-2600.0,0.00041,30]
[339800145,1727987607383,-900.0,0.00041,42]
[339800146,1727987607393,-157.100317,0.00041048,119]
[339800147,1727987607403,-706.1001,0.00041088,7]
[339800148,1727987607413,-324.6202545,0.00041095,120]
[339800149,1727987607423,-515.43439345,0.00041095,30]
[339800150,1727987607433,-7400.23,0.00041095,120]
[339800151,1727987607444,-157.0,0.00041096,2]
[339800152,1727987607453,-200.0,0.00041096,10]
[339800153,1727987607463,-192.20009441,0.000411,120]
[339800154,1727987607472,-173.98,0.00041123,30]
[339800155,1727987607482,-151.100307,0.00041148,120]
[339800156,1727987607492,-110248.0,0.000412,120]
[339800157,1727987607502,-8720.4,0.00041347,117]
[339800158,1727987607511,-157.100317,0.00041348,120]
[339800159,1727987607522,-599.0,0.00041397,120]
[339800160,1727987607531,-599.0,0.00041397,120]
[339800161,1727987607541,-599.0,0.00041397,120]
[339800162,1727987607550,-599.0,0.00041397,120]
[339800163,1727987607560,-599.0,0.00041397,120]
[339800164,1727987607570,-599.0,0.00041397,120]
[339800165,1727987607579,-599.0,0.00041397,120]
[339800166,1727987607589,-599.0,0.00041397,120]
[339800167,1727987607599,-599.0,0.00041397,120]
[339800168,1727987607609,-599.0,0.00041397,120]
[339800169,1727987607619,-599.0,0.00041397,120]
[339800170,1727987607629,-599.0,0.00041397,120]
[339800171,1727987607638,-599.0,0.00041397,120]
[339800172,1727987607649,-599.0,0.00041397,120]
[339800173,1727987607659,-599.0,0.00041397,120]
[339800174,1727987607670,-599.0,0.00041397,120]
[339800175,1727987607680,-599.0,0.00041397,120]
[339800176,1727987607689,-599.0,0.00041397,120]
[339800177,1727987607699,-599.0,0.00041397,120]
[339800178,1727987607709,-599.0,0.00041397,120]
[339800179,1727987607719,-599.0,0.00041397,120]
[339800180,1727987607729,-421.0,0.00041397,120]
[339800181,1727987607739,-282.92675,0.000414,120]
[339800182,1727987607748,-500000.0,0.000414,120]
[339800183,1727987607757,-200714.0,0.0004144,30]
[339800184,1727987607768,-151.100307,0.00041448,120]
[339800185,1727987607778,-1000000.0,0.000415,120]
[339800186,1727987607787,-1000000.0,0.000415,120]
[339800187,1727987607796,-15087.26486461,0.000415,120]
[339800188,1727987607806,-7400.23,0.00041506,120]
[339800189,1727987607917,-157.100317,0.00041548,120]
[339800190,1727987607926,-799.0,0.00041619,30]
[339800191,1727987607936,-999.0,0.00041643,120]
[339800192,1727987607945,-151.100307,0.00041748,120]
[339800193,1727987607956,-4294.0375607,0.00041761,60]
[339800194,1727987607965,-185.83,0.0004187,90]
[339800195,1727987607975,-816.34,0.0004188,120]
[339800196,1727987607984,-156.9111,0.00041888,30]
[339800197,1727987607993,-7400.23,0.00041917,120]
[339800198,1727987608002,-155.00945698,0.00041918,30]
[339800199,1727987608012,-3074.94787407,0.00041947,66]
[339800200,1727987608023,-157.100317,0.00041948,120]
[339800201,1727987608032,-162398.14005584,0.0004198,60]
[339800202,1727987608042,-1564.93,0.00041988,2]
[339800203,1727987608054,-1000.0,0.00041999,120]
[339800204,1727987608063,-50000.0,0.00042,32]
[339800205,1727987608072,-50000.0,0.00042,42]
[339800206,1727987608081,-8817.39248457,0.00042,2]
[339800207,1727987608091,-500.0,0.00042,7]
[339800208,1727987608100,-1000000.0,0.00042,120]
[339800209,1727987608109,-3295.21788145,0.00042,120]
[339800210,1727987608118,-8850.65687722,0.00042,30]
[339800211,1727987608128,-1000.0,0.00042,120]
[339800212,1727987608137,-10000.0,0.00042,120]
[339800213,1727987608146,-50000.0,0.00042,30]
[339800214,1727987608155,-1000.0,0.00042,120]
[339800215,1727987608164,-100000.0,0.00042,120]
[339800216,1727987608173,-1000.0,0.00042,120]
[339800217,1727987608183,-212.59872385,0.00042,120]
[339800218,1727987608192,-65771.21785411,0.00042,120]
[339800219,1727987608202,-250.0,0.00042,30]
[339800220,1727987608211,-1308.57061359,0.0004201,2]
[339800221,1727987608221,-151.100309,0.00042148,120]
[339800222,1727987608230,-103398.46492745,0.000422,30]
[339800223,1727987608239,-98867.72434379,0.000422,30]
[339800224,1727987608249,-7400.23,0.00042328,120]
[339800225,1727987608258,-151.100307,0.00042348,120]
[339800226,1727987608267,-160936.0,0.000424,30]
[339800227,1727987608280,-157.100218,0.00042448,120]
[339800228,1727987608290,-900.0,0.00042466,30]
[339800229,1727987608299,-1300.0,0.00042466,30]
[339800230,1727987608308,-100000.0,0.0004248,115]
[339800231,1727987608317,-1000000.0,0.000425,120]
[339800232,1727987608326,-50000.0,0.000425,31]
[339800233,1727987608336,-151.100307,0.00042548,120]
[339800234,1727987608345,-46956.00203007,0.00042558,2]
[339800235,1727987608354,-152.0,0.00042719,4]
[339800236,1727987608364,-296.06913547,0.00042719,5]
[339800237,1727987608373,-152.0,0.00042719,4]
[339800238,1727987608382,-152.0,0.00042719,5]
[339800239,1727987608392,-7400.23,0.00042739,120]
[339800240,1727987608401,-999.0,0.00042739,120]
[339800241,1727987608411,-157.100218,0.00042748,120]
[339800242,1727987608420,-4029.73738306,0.000428,60]
[339800243,1727987608429,-3057.68933541,0.000428,120]
[339800244,1727987608438,-923.0,0.0004287,120]
[339800245,1727987608448,-9822.0404311,0.00042898,120]
[339800246,1727987608457,-1050.67324828,0.000429,60]
[339800247,1727987608467,-5935.45998141,0.000429,120]
[339800248,1727987608476,-188.99807913,0.000429,60]
[339800249,1727987608485,-349.69513921,0.000429,60]
[339800250,1727987608494,-282.92675,0.000429,120]
[339800251,1727987608502,-151.100307,0.00042948,120]
[339800252,1727987608511,-411.0,0.00042986,120]
[339800253,1727987608521,-1000.0,0.00042999,120]
[339800254,1727987608530,-50000.0,0.00043,33]
[339800255,1727987608539,-50000.0,0.00043,43]
[339800256,1727987608548,-62531.64224091,0.00043,2]
[339800257,1727987608558,-150.0,0.00043,6]
[339800258,1727987608567,-12700.98033661,0.00043,30]
[339800259,1727987608576,-3000.0,0.00043,30]
[339800260,1727987608585,-4529.81433339,0.00043,30]
[339800261,1727987608594,-1000000.0,0.00043,120]
[339800262,1727987608603,-1000000.0,0.00043,120]
[339800263,1727987608612,-1000000.0,0.00043,120]
[339800264,1727987608621,-4031.54070246,0.00043,120]
[339800265,1727987608630,-20000.0,0.00043,120]
[339800266,1727987608639,-42618.81170695,0.00043,30]
[339800267,1727987608648,-50000.0,0.00043,32]
[339800268,1727987608657,-3199.55861792,0.00043,60]
[339800269,1727987608667,-186.14541688,0.00043,120]
[339800270,1727987608676,-30000.0,0.00043,31]
[339800271,1727987608686,-264.08954512,0.00043,30]
[339800272,1727987608695,-23677.77838497,0.00043,120]
[339800273,1727987608706,-7325.93116645,0.00043,120]
[339800274,1727987608716,-521.70172392,0.00043,30]
[339800275,1727987608725,-3143.59,0.00043,120]
[339800276,1727987608734,-2820.0,0.00043,120]
[339800277,1727987608743,-4885.24164388,0.00043,120]
[339800278,1727987608752,-6262.01207709,0.00043,120]
[339800279,1727987608761,-32368.52028475,0.00043,120]
[339800280,1727987608770,-70622.63192508,0.00043,10]
[339800281,1727987608779,-185.16,0.00043014,120]
[339800282,1727987608788,-157.100218,0.00043148,120]
[339800283,1727987608797,-7400.23,0.0004315,120]
[339800284,1727987608808,-175.07268333,0.000432,30]
[339800285,1727987608817,-604.442084,0.00043247,120]
[339800286,1727987608826,-4294.0375607,0.00043261,60]
[339800287,1727987608835,-1524.27107493,0.00043272,45]
[339800288,1727987608844,-41309.45522822,0.00043283,45]
[339800289,1727987608853,-305.7913148,0.00043284,45]
[339800290,1727987608863,-4000.0,0.000433,30]
[339800291,1727987608873,-70000.0,0.000433,30]
[339800292,1727987608884,-3000.0,0.000433,2]
[339800293,1727987608893,-246.490615,0.00043312,30]
[339800294,1727987608902,-151.100317,0.00043348,119]
[339800295,1727987608911,-305.7913148,0.00043359,45]
[339800296,1727987608920,-1524.27107493,0.00043361,45]
[339800297,1727987608929,-41309.45522822,0.00043382,45]
[339800298,1727987608938,-305.7913148,0.00043395,45]
[339800299,1727987608947,-200.0,0.00043399,45]
[339800300,1727987608957,-246.490615,0.00043443,30]
[339800301,1727987608967,-1192.5121643,0.0004345,30]
[339800302,1727987608977,-246.490615,0.00043466,30]
[339800303,1727987608986,-1524.27107493,0.00043484,45]
[339800304,1727987608995,-41309.45522822,0.0004349,45]
[339800305,1727987609004,-1192.5121643,0.00043491,30]
[339800306,1727987609013,-1192.5121643,0.00043494,30]
[339800307,1727987609025,-71983.85990837,0.000435,120]
[339800308,1727987609040,-50000.0,0.000435,32]
[339800309,1727987609050,-151.100317,0.00043548,119]
[339800310,1727987609059,-7400.23,0.00043561,120]
[339800311,1727987609068,-900.0,0.00043562,30]
[339800312,1727987609077,-1300.0,0.00043562,30]
[339800313,1727987609086,-40000.0,0.00043666,120]
[339800314,1727987609095,-50000.0,0.0004367,120]
[339800315,1727987609104,-7401434.07,0.0004369,120]
[339800316,1727987609113,-5660.19156709,0.000437,120]
[339800317,1727987609122,-799.0,0.000437,30]
[339800318,1727987609131,-61305.02168101,0.00043745,120]
[339800319,1727987609140,-151.100317,0.00043748,119]
[339800320,1727987609149,-314.74102816,0.000438,120]
[339800321,1727987609158,-465.62459782,0.000438,30]